[Event "Early-Titled-Tuesday-Blitz-February-27-2024"]
[Site "Chess.com"]
[Date "2024.02.27"]
[Round "6"]
[White "AnaKuchava"]
[Black "amelia91"]
[Result "0-1"]
[WhiteElo "2170"]
[BlackElo "1989"]
[TimeControl "180+1"]
[EndTime "9:05:16 PST"]
[Termination "amelia91 won on time"]

1. d4 {[%clk 0:03:00.9]} 1... Nf6 {[%clk 0:02:57.9]} 2. Nf3 {[%clk 0:02:43.5]}
2... e6 {[%clk 0:02:57.1]} 3. c4 {[%clk 0:02:42.9]} 3... d5 {[%clk 0:02:56.1]}
4. Nc3 {[%clk 0:02:41.1]} 4... c6 {[%clk 0:02:52.7]} 5. Qb3 {[%clk 0:02:37.9]}
5... Be7 {[%clk 0:02:47.1]} 6. Bf4 {[%clk 0:02:27.5]} 6... O-O {[%clk
0:02:45.6]} 7. e3 {[%clk 0:02:22.8]} 7... Qb6 {[%clk 0:02:44.8]} 8. c5 {[%clk
0:02:19]} 8... Qd8 {[%clk 0:02:38.7]} 9. Bd3 {[%clk 0:02:14.5]} 9... Nbd7 {[%clk
0:02:38.4]} 10. O-O {[%clk 0:02:10.1]} 10... Re8 {[%clk 0:02:36.1]} 11. Qc2
{[%clk 0:01:55.9]} 11... b6 {[%clk 0:02:35]} 12. b4 {[%clk 0:01:55.4]} 12... a5
{[%clk 0:02:35]} 13. a3 {[%clk 0:01:55]} 13... Bb7 {[%clk 0:02:26.2]} 14. h3
{[%clk 0:01:39.5]} 14... Nf8 {[%clk 0:02:11.1]} 15. Rfb1 {[%clk 0:01:29.9]}
15... N6d7 {[%clk 0:01:53.5]} 16. Na4 {[%clk 0:01:09.1]} 16... b5 {[%clk
0:01:34.7]} 17. Nc3 {[%clk 0:00:55.7]} 17... axb4 {[%clk 0:01:30.6]} 18. axb4
{[%clk 0:00:54.1]} 18... Bf6 {[%clk 0:01:30.5]} 19. Ne5 {[%clk 0:00:42.1]} 19...
Bxe5 {[%clk 0:01:11.2]} 20. Bxe5 {[%clk 0:00:43]} 20... Nxe5 {[%clk 0:00:51.6]}
21. dxe5 {[%clk 0:00:41.3]} 21... Rxa1 {[%clk 0:00:47.3]} 22. Rxa1 {[%clk
0:00:39.6]} 22... Qb8 {[%clk 0:00:47.2]} 23. f4 {[%clk 0:00:38]} 23... Nd7
{[%clk 0:00:46.4]} 24. Bxh7+ {[%clk 0:00:34.3]} 24... Kf8 {[%clk 0:00:46.3]} 25.
Bd3 {[%clk 0:00:31.1]} 25... f6 {[%clk 0:00:45.3]} 26. Bg6 {[%clk 0:00:26.7]}
26... Rd8 {[%clk 0:00:38.8]} 27. exf6 {[%clk 0:00:26.1]} 27... Nxf6 {[%clk
0:00:37.9]} 28. Ne2 {[%clk 0:00:25.1]} 28... e5 {[%clk 0:00:36.9]} 29. Qf5
{[%clk 0:00:24.8]} 29... exf4 {[%clk 0:00:32.5]} 30. Nxf4 {[%clk 0:00:25.7]}
30... Bc8 {[%clk 0:00:32.4]} 31. Ne6+ {[%clk 0:00:20.3]} 31... Bxe6 {[%clk
0:00:32.2]} 32. Qxe6 {[%clk 0:00:21.2]} 32... Qc7 {[%clk 0:00:31.3]} 33. Ra6
{[%clk 0:00:19.5]} 33... Qe7 {[%clk 0:00:13.8]} 34. Rxc6 {[%clk 0:00:16.5]}
34... Qxe6 {[%clk 0:00:13.3]} 35. Rxe6 {[%clk 0:00:17.4]} 35... d4 {[%clk
0:00:13.6]} 36. exd4 {[%clk 0:00:14.5]} 36... Rxd4 {[%clk 0:00:14.5]} 37. c6
{[%clk 0:00:12.6]} 37... Rxb4 {[%clk 0:00:13.9]} 38. Bd3 {[%clk 0:00:09.4]}
38... Rb3 {[%clk 0:00:09.2]} 39. Rd6 {[%clk 0:00:08.4]} 39... Ke7 {[%clk
0:00:07.9]} 40. Rd4 {[%clk 0:00:07]} 40... Rc3 {[%clk 0:00:07.2]} 41. Bxb5
{[%clk 0:00:07.2]} 41... Rc5 {[%clk 0:00:05.5]} 42. Rc4 {[%clk 0:00:03.3]} 42...
Rxc4 {[%clk 0:00:04.4]} 43. Bxc4 {[%clk 0:00:04.1]} 43... Kd6 {[%clk 0:00:04.8]}
44. Bb5 {[%clk 0:00:02.8]} 44... Ne4 {[%clk 0:00:04.6]} 45. Kh2 {[%clk
0:00:02.7]} 45... Nc3 {[%clk 0:00:04.5]} 0-1

[Event "Early-Titled-Tuesday-Blitz-February-27-2024"]
[Site "Chess.com"]
[Date "2024.02.27"]
[Round "6"]
[White "ChessSwole"]
[Black "Road2GM3000"]
[Result "1/2-1/2"]
[WhiteElo "2686"]
[BlackElo "2441"]
[TimeControl "180+1"]
[EndTime "9:05:17 PST"]
[Termination "Game drawn - insufficient material"]

1. e4 {[%clk 0:03:00.9]} 1... c5 {[%clk 0:03:00.2]} 2. Nf3 {[%clk 0:03:01.2]}
2... d6 {[%clk 0:03:00.9]} 3. d4 {[%clk 0:03:01.1]} 3... cxd4 {[%clk 0:03:01.8]}
4. Nxd4 {[%clk 0:03:00.6]} 4... Nf6 {[%clk 0:03:02.6]} 5. Nc3 {[%clk 0:03:00.9]}
5... a6 {[%clk 0:03:03.2]} 6. h3 {[%clk 0:03:01.3]} 6... e6 {[%clk 0:03:03.1]}
7. g4 {[%clk 0:03:00.2]} 7... Be7 {[%clk 0:03:03.9]} 8. g5 {[%clk 0:02:59.5]}
8... Nfd7 {[%clk 0:03:04.6]} 9. Bg2 {[%clk 0:02:59.5]} 9... Nc6 {[%clk
0:03:03.8]} 10. h4 {[%clk 0:02:56.8]} 10... O-O {[%clk 0:02:59.4]} 11. b3 {[%clk
0:02:50.3]} 11... Qc7 {[%clk 0:02:58.9]} 12. Bb2 {[%clk 0:02:48.7]} 12... Nde5
{[%clk 0:02:57.1]} 13. f4 {[%clk 0:02:44.9]} 13... Nxd4 {[%clk 0:02:56.2]} 14.
Qxd4 {[%clk 0:02:42.8]} 14... Nc6 {[%clk 0:02:56.5]} 15. Qe3 {[%clk 0:02:34.3]}
15... b5 {[%clk 0:02:56.9]} 16. O-O-O {[%clk 0:02:27.7]} 16... Bb7 {[%clk
0:02:57.3]} 17. f5 {[%clk 0:02:18.5]} 17... Rfc8 {[%clk 0:02:49.1]} 18. Bh3
{[%clk 0:02:02.1]} 18... b4 {[%clk 0:02:43.6]} 19. fxe6 {[%clk 0:01:38.5]} 19...
bxc3 {[%clk 0:02:35.1]} 20. exf7+ {[%clk 0:01:38.5]} 20... Kf8 {[%clk
0:02:35.3]} 21. Qxc3 {[%clk 0:01:37.4]} 21... Ne5 {[%clk 0:02:31.4]} 22. Bxc8
{[%clk 0:01:32.9]} 22... Qxc3 {[%clk 0:02:28.8]} 23. Bxc3 {[%clk 0:01:31.5]}
23... Rxc8 {[%clk 0:02:29.5]} 24. Bxe5 {[%clk 0:01:22.3]} 24... Bxe4 {[%clk
0:02:23.4]} 25. Rhe1 {[%clk 0:00:33.4]} 25... Rxc2+ {[%clk 0:02:12.8]} 26. Kb1
{[%clk 0:00:33.3]} 26... Rd2+ {[%clk 0:01:57.2]} 27. Rxe4 {[%clk 0:00:24.1]}
27... Rxd1+ {[%clk 0:01:56.5]} 28. Kc2 {[%clk 0:00:24.7]} 28... Rh1 {[%clk
0:01:43.5]} 29. Bxg7+ {[%clk 0:00:24.6]} 29... Kxf7 {[%clk 0:01:40.4]} 30. Bd4
{[%clk 0:00:24.4]} 30... d5 {[%clk 0:01:38.6]} 31. Rf4+ {[%clk 0:00:23.6]} 31...
Ke6 {[%clk 0:01:38.3]} 32. Bf6 {[%clk 0:00:22.9]} 32... Bd6 {[%clk 0:01:38.3]}
33. Ra4 {[%clk 0:00:22.5]} 33... a5 {[%clk 0:01:27.8]} 34. Bc3 {[%clk
0:00:20.1]} 34... Rh2+ {[%clk 0:01:15.5]} 35. Kd1 {[%clk 0:00:20]} 35... Bc7
{[%clk 0:01:06.8]} 36. Bxa5 {[%clk 0:00:18.1]} 36... Bxa5 {[%clk 0:01:06.8]} 37.
Rxa5 {[%clk 0:00:19]} 37... Rxh4 {[%clk 0:01:07]} 38. Ra6+ {[%clk 0:00:19.6]}
38... Ke5 {[%clk 0:01:07.3]} 39. Rh6 {[%clk 0:00:19.6]} 39... Rg4 {[%clk
0:01:03.5]} 40. Rxh7 {[%clk 0:00:18.5]} 40... Rxg5 {[%clk 0:01:04]} 41. Rh4
{[%clk 0:00:14.9]} 41... Rg2 {[%clk 0:01:03.7]} 42. a4 {[%clk 0:00:14.6]} 42...
Rb2 {[%clk 0:00:59.9]} 43. b4 {[%clk 0:00:13.3]} 43... d4 {[%clk 0:00:59.6]} 44.
b5 {[%clk 0:00:11.2]} 44... Ra2 {[%clk 0:00:57.7]} 45. b6 {[%clk 0:00:09.1]}
45... Rxa4 {[%clk 0:00:57.3]} 46. Rh5+ {[%clk 0:00:09.1]} 46... Ke4 {[%clk
0:00:57.5]} 47. Rb5 {[%clk 0:00:09.5]} 47... Ra8 {[%clk 0:00:56.9]} 48. Kd2
{[%clk 0:00:10]} 48... Rb8 {[%clk 0:00:55.7]} 49. b7 {[%clk 0:00:08.9]} 49... d3
{[%clk 0:00:54.4]} 50. Kc3 {[%clk 0:00:08.2]} 50... Ke3 {[%clk 0:00:55]} 51.
Re5+ {[%clk 0:00:07.9]} 51... Kf4 {[%clk 0:00:55.4]} 52. Re7 {[%clk 0:00:08.1]}
52... Rd8 {[%clk 0:00:52.7]} 53. Rd7 {[%clk 0:00:05.7]} 53... Rxd7 {[%clk
0:00:40.1]} 54. b8=Q+ {[%clk 0:00:05.9]} 54... Kf5 {[%clk 0:00:38.3]} 55. Qc8
{[%clk 0:00:05.7]} 55... Ke6 {[%clk 0:00:38.7]} 56. Qc6+ {[%clk 0:00:06]} 56...
Ke7 {[%clk 0:00:39.2]} 57. Kd2 {[%clk 0:00:05.8]} 57... Kd8 {[%clk 0:00:39.4]}
58. Qf6+ {[%clk 0:00:06]} 58... Kc7 {[%clk 0:00:39.9]} 59. Qf4+ {[%clk
0:00:06.4]} 59... Kd8 {[%clk 0:00:40.3]} 60. Qg5+ {[%clk 0:00:06]} 60... Kc7
{[%clk 0:00:40.7]} 61. Qg3+ {[%clk 0:00:06.3]} 61... Kd8 {[%clk 0:00:41.1]} 62.
Kc3 {[%clk 0:00:06.3]} 62... d2 {[%clk 0:00:41]} 63. Qg5+ {[%clk 0:00:06.2]}
63... Kc7 {[%clk 0:00:40.7]} 64. Qc5+ {[%clk 0:00:06.4]} 64... Kd8 {[%clk
0:00:40.7]} 65. Qg5+ {[%clk 0:00:06.7]} 65... Kc8 {[%clk 0:00:40.5]} 66. Qxd2
{[%clk 0:00:06.5]} 66... Rxd2 {[%clk 0:00:40.2]} 67. Kxd2 {[%clk 0:00:07.4]}
1/2-1/2

[Event "Early-Titled-Tuesday-Blitz-February-27-2024"]
[Site "Chess.com"]
[Date "2024.02.27"]
[Round "6"]
[White "anasta10"]
[Black "GeorgiosSouleidis"]
[Result "0-1"]
[WhiteElo "2534"]
[BlackElo "2715"]
[TimeControl "180+1"]
[EndTime "9:05:20 PST"]
[Termination "GeorgiosSouleidis won on time"]

1. Nf3 {[%clk 0:03:00.9]} 1... Nf6 {[%clk 0:02:59.8]} 2. c4 {[%clk 0:03:01.1]}
2... g6 {[%clk 0:03:00.3]} 3. g3 {[%clk 0:02:53.9]} 3... Bg7 {[%clk 0:03:00.6]}
4. Bg2 {[%clk 0:02:54.6]} 4... O-O {[%clk 0:03:01.5]} 5. O-O {[%clk 0:02:54.9]}
5... d6 {[%clk 0:03:02.3]} 6. Nc3 {[%clk 0:02:53.4]} 6... Nc6 {[%clk 0:03:02.7]}
7. b3 {[%clk 0:02:52.8]} 7... e5 {[%clk 0:03:02.4]} 8. Bb2 {[%clk 0:02:53]} 8...
Re8 {[%clk 0:03:00.6]} 9. d3 {[%clk 0:02:52.7]} 9... Be6 {[%clk 0:02:49.9]} 10.
a3 {[%clk 0:02:52.4]} 10... h6 {[%clk 0:02:45.3]} 11. b4 {[%clk 0:02:51.9]}
11... Qd7 {[%clk 0:02:42.4]} 12. e4 {[%clk 0:02:45.2]} 12... Bg4 {[%clk
0:02:27.9]} 13. Nd5 {[%clk 0:02:38.9]} 13... Nh7 {[%clk 0:02:20.9]} 14. Qd2
{[%clk 0:02:31.5]} 14... Nd8 {[%clk 0:02:16.9]} 15. Ne3 {[%clk 0:02:25.4]} 15...
Bxf3 {[%clk 0:02:13.4]} 16. Bxf3 {[%clk 0:02:25.2]} 16... Ne6 {[%clk 0:02:12.3]}
17. Bg2 {[%clk 0:02:25.1]} 17... c6 {[%clk 0:02:09.1]} 18. f4 {[%clk 0:02:11.5]}
18... exf4 {[%clk 0:01:56.5]} 19. gxf4 {[%clk 0:02:11.2]} 19... Nd4 {[%clk
0:01:49]} 20. Rae1 {[%clk 0:02:06.1]} 20... a5 {[%clk 0:01:39.5]} 21. bxa5
{[%clk 0:01:27.3]} 21... Nf8 {[%clk 0:01:29]} 22. Kh1 {[%clk 0:01:23.1]} 22...
Qd8 {[%clk 0:01:15.5]} 23. Bc3 {[%clk 0:01:08.9]} 23... Nd7 {[%clk 0:01:15.3]}
24. f5 {[%clk 0:01:05.9]} 24... Nc5 {[%clk 0:01:11.6]} 25. Ng4 {[%clk
0:00:40.1]} 25... Ncb3 {[%clk 0:01:06.3]} 26. Qb2 {[%clk 0:00:32.1]} 26... h5
{[%clk 0:00:34.6]} 27. Ne3 {[%clk 0:00:29.2]} 27... Be5 {[%clk 0:00:30.1]} 28.
Qf2 {[%clk 0:00:11.1]} 28... Qg5 {[%clk 0:00:16.7]} 29. Rg1 {[%clk 0:00:10.9]}
29... Qf4 {[%clk 0:00:15.8]} 30. Qxf4 {[%clk 0:00:10.2]} 30... Bxf4 {[%clk
0:00:16.4]} 31. Bh3 {[%clk 0:00:04.8]} 31... Kh7 {[%clk 0:00:15.7]} 32. Ng2
{[%clk 0:00:04]} 32... Be5 {[%clk 0:00:15.8]} 33. Nh4 {[%clk 0:00:04.1]} 33...
Rg8 {[%clk 0:00:15.6]} 34. fxg6+ {[%clk 0:00:04.1]} 34... fxg6 {[%clk
0:00:15.7]} 35. Nxg6 {[%clk 0:00:03.1]} 35... Rxg6 {[%clk 0:00:15.3]} 36. Rxg6
{[%clk 0:00:02.4]} 36... Kxg6 {[%clk 0:00:15.4]} 37. Rg1+ {[%clk 0:00:03.3]}
37... Kh7 {[%clk 0:00:13.9]} 38. Rf1 {[%clk 0:00:03.7]} 38... Kg7 {[%clk
0:00:12.4]} 39. Rg1+ {[%clk 0:00:04.4]} 39... Kf7 {[%clk 0:00:12.6]} 40. Rf1+
{[%clk 0:00:04.5]} 40... Ke7 {[%clk 0:00:13.1]} 41. Rg1 {[%clk 0:00:04.8]} 41...
Rf8 {[%clk 0:00:13.3]} 42. Rg6 {[%clk 0:00:05.2]} 42... Rf6 {[%clk 0:00:12.8]}
43. Rg7+ {[%clk 0:00:05.4]} 43... Rf7 {[%clk 0:00:13.3]} 44. Rg6 {[%clk
0:00:05.8]} 44... Rg7 {[%clk 0:00:09.5]} 45. Rxg7+ {[%clk 0:00:02.8]} 45... Bxg7
{[%clk 0:00:10.4]} 46. Bc8 {[%clk 0:00:03.1]} 46... Nc5 {[%clk 0:00:08.3]} 47.
Bb4 {[%clk 0:00:02.2]} 47... Nde6 {[%clk 0:00:06.2]} 48. a6 {[%clk 0:00:01.7]}
48... bxa6 {[%clk 0:00:06.3]} 0-1

[Event "Early-Titled-Tuesday-Blitz-February-27-2024"]
[Site "Chess.com"]
[Date "2024.02.27"]
[Round "6"]
[White "Mesa_1"]
[Black "Kev4444444444"]
[Result "0-1"]
[WhiteElo "2495"]
[BlackElo "2319"]
[TimeControl "180+1"]
[EndTime "9:05:20 PST"]
[Termination "Kev4444444444 won by checkmate"]

1. d4 {[%clk 0:03:00.9]} 1... d5 {[%clk 0:02:59.4]} 2. c4 {[%clk 0:03:01.1]}
2... c6 {[%clk 0:02:59.6]} 3. Nf3 {[%clk 0:03:01.1]} 3... Nf6 {[%clk 0:02:59.6]}
4. g3 {[%clk 0:03:01.7]} 4... Bf5 {[%clk 0:02:58.5]} 5. Nc3 {[%clk 0:03:00.5]}
5... e6 {[%clk 0:02:51.8]} 6. Nh4 {[%clk 0:03:00.6]} 6... Bg6 {[%clk 0:02:49.3]}
7. Qb3 {[%clk 0:02:58.7]} 7... Qb6 {[%clk 0:02:48.8]} 8. c5 {[%clk 0:02:58.6]}
8... Qxb3 {[%clk 0:02:48.1]} 9. axb3 {[%clk 0:02:59.5]} 9... Na6 {[%clk
0:02:45.3]} 10. Nxg6 {[%clk 0:02:50.8]} 10... hxg6 {[%clk 0:02:44.9]} 11. Ra4
{[%clk 0:02:43.7]} 11... Be7 {[%clk 0:02:27.7]} 12. Bf4 {[%clk 0:02:44.1]} 12...
O-O {[%clk 0:02:18.5]} 13. e4 {[%clk 0:02:42.7]} 13... dxe4 {[%clk 0:02:10.4]}
14. Bxa6 {[%clk 0:02:41.7]} 14... bxa6 {[%clk 0:02:11.3]} 15. Rxa6 {[%clk
0:02:36.8]} 15... Rfd8 {[%clk 0:02:10.1]} 16. O-O {[%clk 0:02:10.8]} 16... Rxd4
{[%clk 0:02:05]} 17. Rxc6 {[%clk 0:02:11.4]} 17... Nd5 {[%clk 0:01:59]} 18. Be5
{[%clk 0:02:03.8]} 18... Rb4 {[%clk 0:01:55.4]} 19. Nxd5 {[%clk 0:02:02.8]}
19... exd5 {[%clk 0:01:54.4]} 20. Rd1 {[%clk 0:01:59]} 20... Rd8 {[%clk
0:01:48.1]} 21. Rc7 {[%clk 0:01:56.7]} 21... Bf6 {[%clk 0:01:31.8]} 22. Bxf6
{[%clk 0:01:56.9]} 22... gxf6 {[%clk 0:01:32.7]} 23. Ra1 {[%clk 0:01:56.9]}
23... d4 {[%clk 0:01:30.6]} 24. Raxa7 {[%clk 0:01:57.4]} 24... d3 {[%clk
0:01:26.5]} 25. Rxf7 {[%clk 0:01:53]} 25... d2 {[%clk 0:01:26.9]} 26. Rg7+
{[%clk 0:01:52.4]} 26... Kh8 {[%clk 0:01:27.4]} 27. Rh7+ {[%clk 0:01:51]} 27...
Kg8 {[%clk 0:01:27.5]} 28. Rag7+ {[%clk 0:01:50.8]} 28... Kf8 {[%clk 0:01:27.9]}
29. Rh8+ {[%clk 0:01:48.5]} 29... Kxg7 {[%clk 0:01:28.8]} 30. Rxd8 {[%clk
0:01:48.7]} 30... Rb5 {[%clk 0:01:14.8]} 31. b4 {[%clk 0:01:44.3]} 31... Rxb4
{[%clk 0:01:14.3]} 32. Rxd2 {[%clk 0:01:39.9]} 32... Rc4 {[%clk 0:01:14.4]} 33.
b4 {[%clk 0:01:28.3]} 33... Rxb4 {[%clk 0:01:13.9]} 34. Rc2 {[%clk 0:01:28.3]}
34... Rb7 {[%clk 0:01:11.6]} 35. c6 {[%clk 0:01:28.7]} 35... Rc7 {[%clk
0:01:12.2]} 36. h4 {[%clk 0:01:25.1]} 36... Kf7 {[%clk 0:01:04.4]} 37. Kf1
{[%clk 0:01:24.4]} 37... Ke6 {[%clk 0:01:04.7]} 38. Ke2 {[%clk 0:01:22.7]} 38...
f5 {[%clk 0:00:52.2]} 39. Ke3 {[%clk 0:01:21]} 39... Kd5 {[%clk 0:00:49.3]} 40.
Kf4 {[%clk 0:01:20.8]} 40... Kd4 {[%clk 0:00:45.1]} 41. Kg5 {[%clk 0:01:15.4]}
41... Kd3 {[%clk 0:00:45.4]} 42. Rc5 {[%clk 0:01:12.5]} 42... Ke2 {[%clk
0:00:41.3]} 43. Kxg6 {[%clk 0:01:11.5]} 43... Kxf2 {[%clk 0:00:41]} 44. Kxf5
{[%clk 0:01:04.5]} 44... e3 {[%clk 0:00:40.9]} 45. g4 {[%clk 0:00:43.7]} 45...
e2 {[%clk 0:00:39.4]} 46. Re5 {[%clk 0:00:38]} 46... Rxc6 {[%clk 0:00:31.1]} 47.
Rxe2+ {[%clk 0:00:17.8]} 47... Kxe2 {[%clk 0:00:32]} 48. h5 {[%clk 0:00:17.7]}
48... Kf3 {[%clk 0:00:31.4]} 49. g5 {[%clk 0:00:18.3]} 49... Rc5+ {[%clk
0:00:29]} 50. Kf6 {[%clk 0:00:19]} 50... Kg4 {[%clk 0:00:28.7]} 51. h6 {[%clk
0:00:19.3]} 51... Rc6+ {[%clk 0:00:22]} 52. Kg7 {[%clk 0:00:18.5]} 52... Kxg5
{[%clk 0:00:22.2]} 53. h7 {[%clk 0:00:19]} 53... Rc7+ {[%clk 0:00:21.3]} 54. Kg8
{[%clk 0:00:17.4]} 54... Rc8+ {[%clk 0:00:17]} 55. Kg7 {[%clk 0:00:15.9]} 55...
Rc7+ {[%clk 0:00:17.9]} 56. Kg8 {[%clk 0:00:16.2]} 56... Kg6 {[%clk 0:00:18.3]}
57. h8=Q {[%clk 0:00:14.1]} 57... Rc8# {[%clk 0:00:18]} 0-1

[Event "Early-Titled-Tuesday-Blitz-February-27-2024"]
[Site "Chess.com"]
[Date "2024.02.27"]
[Round "6"]
[White "Zkid"]
[Black "Kostya0705"]
[Result "1-0"]
[WhiteElo "2915"]
[BlackElo "2577"]
[TimeControl "180+1"]
[EndTime "9:05:21 PST"]
[Termination "Zkid won by resignation"]

1. e4 {[%clk 0:03:00.9]} 1... c5 {[%clk 0:02:58.6]} 2. Nf3 {[%clk 0:03:01.1]}
2... e6 {[%clk 0:02:55.2]} 3. d4 {[%clk 0:03:01.2]} 3... cxd4 {[%clk 0:02:53.5]}
4. Nxd4 {[%clk 0:03:02.1]} 4... Nc6 {[%clk 0:02:51.6]} 5. Nc3 {[%clk 0:03:01.8]}
5... Qc7 {[%clk 0:02:51.7]} 6. Be3 {[%clk 0:03:01.2]} 6... a6 {[%clk 0:02:52.1]}
7. f3 {[%clk 0:03:00.2]} 7... Nf6 {[%clk 0:02:51.1]} 8. Qd2 {[%clk 0:03:00.1]}
8... h5 {[%clk 0:02:49]} 9. O-O-O {[%clk 0:02:58.7]} 9... Be7 {[%clk 0:02:49.5]}
10. Kb1 {[%clk 0:02:40.2]} 10... b5 {[%clk 0:02:48.8]} 11. Nxc6 {[%clk
0:02:39.6]} 11... dxc6 {[%clk 0:02:46]} 12. Bg5 {[%clk 0:02:31.9]} 12... c5
{[%clk 0:02:39.8]} 13. e5 {[%clk 0:02:24.2]} 13... Qxe5 {[%clk 0:02:19.7]} 14.
Bf4 {[%clk 0:02:22.7]} 14... Qd4 {[%clk 0:02:12.3]} 15. Qc1 {[%clk 0:02:03]}
15... Qb4 {[%clk 0:02:10.2]} 16. Bc7 {[%clk 0:01:56]} 16... c4 {[%clk
0:02:03.6]} 17. Bb6 {[%clk 0:01:54.1]} 17... Nd5 {[%clk 0:01:54.4]} 18. Rxd5
{[%clk 0:01:47.2]} 18... exd5 {[%clk 0:01:55.3]} 19. Nxd5 {[%clk 0:01:46.6]}
19... Qd6 {[%clk 0:01:48.9]} 20. Nc7+ {[%clk 0:01:45.8]} 20... Kf8 {[%clk
0:01:48.5]} 21. Nxa8 {[%clk 0:01:46.1]} 21... Bb7 {[%clk 0:01:48.2]} 22. Bc7
{[%clk 0:00:56.5]} 22... Qc6 {[%clk 0:01:45.4]} 23. Qf4 {[%clk 0:00:50.8]} 23...
Bxa8 {[%clk 0:01:43.3]} 24. Be2 {[%clk 0:00:50.9]} 24... g5 {[%clk 0:01:22.8]}
25. Qd4 {[%clk 0:00:49.6]} 25... f6 {[%clk 0:01:22.8]} 26. Ba5 {[%clk
0:00:46.3]} 26... Kg7 {[%clk 0:01:21.3]} 27. Rd1 {[%clk 0:00:37.5]} 27... Re8
{[%clk 0:01:17.3]} 28. h4 {[%clk 0:00:28.5]} 28... Bc5 {[%clk 0:01:13.6]} 29.
Qd2 {[%clk 0:00:26.3]} 29... Qe6 {[%clk 0:00:58.9]} 30. Bf1 {[%clk 0:00:21.9]}
30... gxh4 {[%clk 0:00:53]} 31. Qf4 {[%clk 0:00:18.9]} 31... Be3 {[%clk
0:00:42.5]} 32. Qxh4 {[%clk 0:00:17.4]} 32... Kg6 {[%clk 0:00:40.1]} 33. g4
{[%clk 0:00:16.3]} 33... Bxf3 {[%clk 0:00:32.8]} 34. gxh5+ {[%clk 0:00:16.1]}
34... Kh6 {[%clk 0:00:28.1]} 35. Re1 {[%clk 0:00:11.5]} 35... Qf5 {[%clk
0:00:20.4]} 36. Rxe3 {[%clk 0:00:08.5]} 36... Rxe3 {[%clk 0:00:19]} 37. Bd2
{[%clk 0:00:09.1]} 37... Qg5 {[%clk 0:00:07.8]} 38. Qxg5+ {[%clk 0:00:08.2]}
38... fxg5 {[%clk 0:00:08.7]} 39. Bxe3 {[%clk 0:00:08.2]} 39... Kxh5 {[%clk
0:00:09.6]} 40. Kc1 {[%clk 0:00:08.2]} 40... g4 {[%clk 0:00:09.2]} 41. Bf2
{[%clk 0:00:07.6]} 41... Kg5 {[%clk 0:00:09.6]} 42. Bg3 {[%clk 0:00:08.1]} 42...
Kf5 {[%clk 0:00:10.3]} 43. Kd2 {[%clk 0:00:07.8]} 43... Ke4 {[%clk 0:00:10.4]}
44. b3 {[%clk 0:00:08.5]} 44... Kd4 {[%clk 0:00:09]} 45. c3+ {[%clk 0:00:06.3]}
45... Kd5 {[%clk 0:00:08.9]} 46. bxc4+ {[%clk 0:00:05.9]} 46... bxc4 {[%clk
0:00:09.3]} 47. Ke3 {[%clk 0:00:06.6]} 47... a5 {[%clk 0:00:08.5]} 48. Be2
{[%clk 0:00:04.1]} 48... Bxe2 {[%clk 0:00:08.3]} 49. Kxe2 {[%clk 0:00:05]} 49...
Ke4 {[%clk 0:00:08.5]} 50. a4 {[%clk 0:00:04.9]} 50... Kd5 {[%clk 0:00:07.3]}
51. Ke3 {[%clk 0:00:05.8]} 1-0

[Event "Early-Titled-Tuesday-Blitz-February-27-2024"]
[Site "Chess.com"]
[Date "2024.02.27"]
[Round "6"]
[White "Barmen_EV"]
[Black "Arlo2024"]
[Result "0-1"]
[WhiteElo "2504"]
[BlackElo "2320"]
[TimeControl "180+1"]
[EndTime "9:05:25 PST"]
[Termination "Arlo2024 won on time"]

1. e4 {[%clk 0:03:00.9]} 1... e6 {[%clk 0:03:00.3]} 2. d4 {[%clk 0:02:54.5]}
2... d5 {[%clk 0:03:00.9]} 3. Nd2 {[%clk 0:02:53.6]} 3... dxe4 {[%clk
0:03:01.8]} 4. Nxe4 {[%clk 0:02:54.5]} 4... Nd7 {[%clk 0:03:02.3]} 5. Nf3 {[%clk
0:02:50]} 5... Ngf6 {[%clk 0:03:03.2]} 6. Bd3 {[%clk 0:02:48.6]} 6... Nxe4
{[%clk 0:03:03.2]} 7. Bxe4 {[%clk 0:02:49.5]} 7... Nf6 {[%clk 0:03:03.7]} 8. Bd3
{[%clk 0:02:50.2]} 8... b6 {[%clk 0:03:04.3]} 9. O-O {[%clk 0:02:49.5]} 9... Bb7
{[%clk 0:03:04.9]} 10. Re1 {[%clk 0:02:49.7]} 10... Be7 {[%clk 0:03:05.1]} 11.
c3 {[%clk 0:02:49.8]} 11... O-O {[%clk 0:03:05.6]} 12. Bc2 {[%clk 0:02:50]}
12... c5 {[%clk 0:03:03.5]} 13. Qd3 {[%clk 0:02:50]} 13... Bxf3 {[%clk
0:02:57.6]} 14. Qxf3 {[%clk 0:02:44]} 14... cxd4 {[%clk 0:02:57.5]} 15. Bg5
{[%clk 0:02:42.8]} 15... Qd5 {[%clk 0:02:48]} 16. Be4 {[%clk 0:02:20.7]} 16...
Nxe4 {[%clk 0:02:32.8]} 17. Bxe7 {[%clk 0:02:20.9]} 17... Rfe8 {[%clk
0:02:24.2]} 18. Qxe4 {[%clk 0:02:20.9]} 18... Qxe4 {[%clk 0:02:19.8]} 19. Rxe4
{[%clk 0:02:21.8]} 19... Rxe7 {[%clk 0:02:19.5]} 20. Rxd4 {[%clk 0:02:22.5]}
20... e5 {[%clk 0:02:14.2]} 21. Rd6 {[%clk 0:02:18.4]} 21... f6 {[%clk
0:02:08.9]} 22. Rad1 {[%clk 0:02:16.4]} 22... Rc8 {[%clk 0:02:05]} 23. Rd8+
{[%clk 0:02:06]} 23... Rxd8 {[%clk 0:02:00.2]} 24. Rxd8+ {[%clk 0:02:06.9]}
24... Kf7 {[%clk 0:02:00.6]} 25. f3 {[%clk 0:02:07.1]} 25... Ke6 {[%clk
0:01:58.2]} 26. Kf2 {[%clk 0:02:06.6]} 26... f5 {[%clk 0:01:35.9]} 27. Ke3
{[%clk 0:02:04.5]} 27... Rc7 {[%clk 0:01:30.6]} 28. h4 {[%clk 0:01:56.2]} 28...
g6 {[%clk 0:01:27.8]} 29. Ra8 {[%clk 0:01:39.7]} 29... Rd7 {[%clk 0:01:16.8]}
30. g4 {[%clk 0:01:36]} 30... fxg4 {[%clk 0:00:55.4]} 31. fxg4 {[%clk
0:01:36.9]} 31... h5 {[%clk 0:00:55.7]} 32. gxh5 {[%clk 0:01:34.3]} 32... gxh5
{[%clk 0:00:55.7]} 33. Rh8 {[%clk 0:01:35]} 33... Rg7 {[%clk 0:00:41.4]} 34.
Rxh5 {[%clk 0:01:08.8]} 34... Rg2 {[%clk 0:00:40.2]} 35. Rh7 {[%clk 0:00:43.7]}
35... Rxb2 {[%clk 0:00:38.8]} 36. Rxa7 {[%clk 0:00:42.9]} 36... Kf5 {[%clk
0:00:37]} 37. Kd3 {[%clk 0:00:34.5]} 37... b5 {[%clk 0:00:33.7]} 38. a4 {[%clk
0:00:32.4]} 38... b4 {[%clk 0:00:17.2]} 39. a5 {[%clk 0:00:18.1]} 39... Rb3
{[%clk 0:00:11.3]} 40. Rc7 {[%clk 0:00:16]} 40... bxc3 {[%clk 0:00:08.2]} 41.
Rxc3 {[%clk 0:00:16.9]} 41... Rb4 {[%clk 0:00:07.5]} 42. h5 {[%clk 0:00:09.4]}
42... Ra4 {[%clk 0:00:07.5]} 43. Rc5 {[%clk 0:00:09.8]} 43... Kf4 {[%clk
0:00:07.4]} 44. h6 {[%clk 0:00:09.8]} 44... e4+ {[%clk 0:00:08.1]} 45. Kc3
{[%clk 0:00:09]} 45... e3 {[%clk 0:00:06.5]} 46. h7 {[%clk 0:00:07.1]} 46... e2
{[%clk 0:00:06.7]} 47. Kd2 {[%clk 0:00:06.5]} 47... Re4 {[%clk 0:00:06.3]} 48.
Ke1 {[%clk 0:00:04]} 48... Re8 {[%clk 0:00:06.6]} 49. a6 {[%clk 0:00:02.5]}
49... Ke3 {[%clk 0:00:06.4]} 0-1